bitfinex/quotes_ETHUSD_20240715
["timestamp","ask_amount","ask_price","bid_price","bid_amount"]
[1721053545027,0.62316367,3353.9,3353.8,2.98169]
[1721053546827,0.62316367,3353.9,3353.8,5.96338]
[1721053547126,0.62316367,3354.0,3353.9,5.9632]
[1721053548651,0.62316367,3354.0,3353.9,2.9816]
[1721053548858,0.62359233,3354.0,3353.9,2.9816]
[1721053549035,3.34832473,3354.1,3353.7,2.98171]
[1721053549238,0.62356153,3353.9,3353.7,2.98171]
[1721053549471,0.62356153,3353.9,3353.7,2.9817]
[1721053549688,0.62356153,3353.8,3353.7,2.9817]
[1721053549892,0.62356153,3353.9,3353.7,2.9817]
[1721053551145,0.62356153,3353.9,3353.8,2.98169]
[1721053552376,0.62356153,3353.9,3353.8,5.96338]
[1721053553152,1.24625769,3354.3,3353.9,5.9632]
[1721053553153,0.62356153,3354.0,3353.9,5.9632]
[1721053553861,0.62356153,3354.1,3354.0,5.96302]
[1721053554299,0.62356153,3354.2,3354.1,2.98142]
[1721053555700,0.62356153,3354.2,3354.1,5.96284]
[1721053555866,0.62356153,3354.4,3354.3,5.96248]
[1721053556216,8.64625769,3354.7,3354.4,2.98115]
[1721053556217,0.62356153,3354.5,3354.4,2.98115]
[1721053556501,8.33472473,3354.7,3354.5,2.98107]
[1721053557248,0.62373918,3354.6,3354.5,2.98107]
[1721053557678,0.62373918,3354.6,3354.5,5.96214]
[1721053558051,0.93472473,3354.7,3354.6,2.98098]
[1721053558368,2.23491111,3354.7,3354.6,2.98098]
[1721053559156,0.93577734,3354.7,3354.6,2.98098]
[1721053559827,0.93577734,3354.7,3354.5,2.98106]
[1721053559828,2.2946,3354.6,3354.3,2.98123]
[1721053559961,0.93580144,3354.4,3354.2,2.98133]
[1721053560158,2.54813389,3354.3,3353.7,2.9817]
[1721053560373,0.62371528,3354.0,3353.7,2.9817]
[1721053560585,0.62371528,3353.9,3353.5,2.98187]
[1721053560796,0.62371528,3353.9,3353.6,2.98186]
[1721053561558,0.62371528,3353.9,3353.7,2.98175]
[1721053564530,0.62371528,3353.9,3353.5,2.98187]
[1721053564531,0.62371528,3353.9,3353.8,5.96338]
[1721053564731,0.93537684,3354.2,3353.4,2.3437]
[1721053564886,0.6236037,3354.2,3354.1,2.98142]
[1721053565089,8.0236037,3354.3,3354.2,5.96266]
[1721053565418,0.6236037,3354.3,3354.2,5.96266]
[1721053567285,0.93537684,3354.4,3354.3,2.98124]
[1721053567484,2.23568591,3354.4,3354.3,5.96248]
[1721053567930,2.23568682,3354.4,3354.3,5.96248]
[1721053568132,0.93537684,3354.4,3354.3,5.96248]
[1721053568505,0.93537684,3354.5,3354.3,5.96248]
[1721053568686,0.93537684,3354.5,3354.4,5.9623]
[1721053568885,0.93547198,3354.6,3354.5,5.96214]
[1721053569192,1.37437341,3354.8,3354.6,2.98098]
[1721053569516,2.2358888,3354.7,3354.6,5.96196]
[1721053569714,7.4,3354.9,3354.8,5.9616]
[1721053569889,9.63594168,3354.9,3354.8,5.9616]
[1721053570090,8.33584498,3354.9,3354.8,5.9616]
[1721053570290,9.63591425,3354.9,3354.8,5.9616]
[1721053571233,9.63592238,3354.9,3354.8,5.9616]
[1721053571592,7.4,3354.9,3354.8,5.9616]
[1721053571906,2.23577777,3354.9,3354.8,5.9616]
[1721053572294,0.93570077,3354.9,3354.8,5.9616]
[1721053573224,2.23577821,3354.9,3354.8,5.9616]
[1721053573423,0.93570077,3354.9,3354.8,5.9616]
[1721053573632,0.93570077,3355.0,3354.9,2.98071]
[1721053573922,2.23577609,3355.0,3354.9,2.98071]
[1721053574419,2.23577691,3355.0,3354.9,2.98071]
[1721053575392,0.93570077,3355.0,3354.9,2.98071]
[1721053576103,2.23578212,3355.0,3354.9,2.98071]
[1721053576423,0.93570077,3355.0,3354.9,2.98071]
[1721053578304,0.93570077,3355.1,3355.0,2.98062]
[1721053578637,2.23577723,3355.1,3355.0,2.98062]
[1721053580114,0.93570077,3355.1,3355.0,5.96124]
[1721053580317,0.62262901,3355.2,3354.7,2.3529]
[1721053580515,0.62262901,3355.3,3355.2,5.96088]
[1721053580767,8.33570077,3355.5,3354.7,2.3529]
[1721053580768,0.62262901,3355.4,3355.3,5.9607]
[1721053581335,7.4,3355.5,3355.4,5.96054]
[1721053583862,0.62262901,3355.6,3355.5,2.98018]
[1721053584034,0.93301026,3355.7,3355.6,2.98009]
[1721053584553,3.27455615,3355.8,3355.6,2.98009]
[1721053587745,0.93295615,3355.7,3355.6,2.98009]
[1721053588863,0.93295615,3355.7,3355.2,2.98036]
[1721053589024,0.62172906,3355.6,3355.3,2.98031]
[1721053589224,0.62172906,3355.5,3355.3,2.98031]
[1721053593168,0.62172906,3355.6,3355.3,2.98031]
[1721053596279,0.62172906,3355.5,3355.3,2.98031]
[1721053597408,2.3675,3355.3,3354.7,2.98084]
[1721053597684,2.3675,3354.7,3353.9,2.98158]
[1721053597890,0.62143919,3354.4,3354.0,2.98149]
[1721053598582,0.62143919,3354.4,3353.9,2.98158]
[1721053598880,0.62143919,3354.2,3353.6,2.98186]
[1721053599060,0.62143919,3354.1,3353.6,2.98186]
[1721053599255,0.62143919,3354.0,3353.7,2.98175]
[1721053599784,0.93228559,3354.2,3353.7,2.98175]
[1721053599785,0.62143919,3354.1,3353.7,2.98175]
[1721053600181,0.62143919,3354.0,3353.7,2.98175]
[1721053600484,0.62143919,3354.1,3353.7,2.98175]
[1721053600874,0.62143919,3354.1,3353.9,2.98159]
[1721053601213,0.62143919,3354.2,3353.9,2.98159]
[1721053604392,0.62143919,3354.3,3353.7,2.98175]
[1721053604597,2.3692,3354.1,3353.7,2.98175]
[1721053607396,0.62143919,3354.0,3353.3,2.98212]
[1721053607566,0.62143919,3353.9,3353.3,2.98212]
[1721053607764,1.43618541,3353.9,3353.3,2.98212]
[1721053607994,0.62143919,3353.9,3353.3,2.98212]
[1721053608505,5.35069,3354.1,3352.9,3.0]
[1721053608506,2.99063919,3354.1,3353.6,2.98186]
[1721053609391,2.3692,3354.1,3353.7,2.98177]
[1721053609591,2.98808541,3354.1,3353.7,2.98177]
[1721053610069,2.98807108,3354.1,3353.7,2.98177]
[1721053610403,2.3692,3354.1,3353.7,2.98177]
[1721053610605,2.98807108,3354.1,3353.7,2.98177]
[1721053610783,2.3692,3354.1,3353.7,2.98177]
[1721053611606,3.05895577,3354.1,3353.7,2.98177]
[1721053612300,0.61887108,3354.2,3353.7,2.98177]
[1721053612512,0.61887108,3354.3,3353.8,2.98169]
[1721053620692,0.61887108,3354.3,3353.3,2.98209]
[1721053620933,0.61887108,3354.3,3352.9,5.4365]
[1721053620934,2.2804,3354.0,3352.9,2.98245]
[1721053621091,2.3964,3353.2,3352.5,2.98277]
[1721053621413,2.3964,3353.2,3352.4,2.98292]
[1721053621625,0.61887108,3353.4,3352.8,2.98257]
[1721053621826,8.01887108,3353.5,3352.9,2.98243]
[1721053622038,9.13072177,3353.5,3352.9,2.98243]
[1721053622207,5.99694606,3353.6,3353.2,2.98219]
[1721053622208,2.3964,3353.6,3353.2,2.98219]
[1721053622549,7.4,3353.8,3353.2,2.98217]
[1721053622836,7.4,3353.8,3353.3,2.98213]
[1721053624095,7.4,3353.8,3353.4,2.98201]
[1721053624296,7.4,3353.8,3353.6,2.98186]
[1721053624741,7.4,3353.8,3353.4,2.982]
[1721053624742,9.59764,3353.8,3353.4,2.982]
[1721053625038,5.25024,3353.7,3352.9,2.98246]
[1721053625264,5.86891606,3353.7,3352.9,2.98246]
[1721053625470,0.61867606,3353.6,3352.9,2.98246]
[1721053625610,1.93763302,3353.5,3352.9,2.98246]
[1721053628370,6.05278417,3353.4,3352.5,2.98276]
[1721053628848,6.05278417,3353.4,3352.1,2.98319]
[1721053628849,2.98241,3353.0,3352.1,2.98319]
[1721053629150,2.98241,3353.0,3352.2,2.9831]
[1721053629449,2.98241,3353.0,3352.1,2.98319]
[1721053629450,3.64075462,3353.0,3352.3,2.98297]
[1721053629613,2.98274,3352.7,3351.9,2.98337]
[1721053630128,15.84975,3352.9,3351.9,2.98337]
[1721053630433,2.98258,3352.8,3352.0,2.98329]
[1721053630642,12.8672,3352.9,3352.0,2.98329]
[1721053630836,12.8672,3352.9,3351.8,0.118958]
[1721053630837,11.59736508,3352.9,3351.8,0.118958]
[1721053631026,9.8847,3352.9,3352.4,2.98287]
[1721053631630,9.8847,3352.9,3352.2,2.98303]
[1721053632034,9.8847,3352.9,3352.3,2.98301]
[1721053632819,12.8672,3352.9,3352.1,2.9832]
[1721053633127,12.8672,3352.9,3351.9,2.98337]
[1721053633128,7.4,3352.9,3352.5,2.98276]
[1721053633331,7.4,3352.9,3352.6,2.98274]
[1721053633629,7.4,3352.9,3351.9,7.91987]
[1721053633630,7.4,3353.3,3353.2,2.98222]
[1721053633844,7.4,3353.3,3353.2,5.96444]
[1721053634224,7.4,3353.3,3353.2,2.98222]
[1721053635359,7.4,3353.3,3353.2,5.96444]
[1721053637371,12.18,3353.8,3353.6,2.98184]
[1721053637584,9.8882,3354.3,3353.6,2.98184]
[1721053637882,12.54782148,3354.3,3353.6,2.98184]
[1721053638367,13.16656338,3354.3,3353.6,2.98184]
[1721053640458,0.6187419,3354.2,3353.6,2.98184]
[1721053641251,0.6187419,3354.1,3353.6,2.98184]
[1721053642276,0.6187419,3354.1,3353.4,2.98198]
[1721053642570,0.6187419,3354.0,3353.6,2.98186]
[1721053643560,0.6187419,3353.9,3353.8,2.98169]
[1721053643771,0.6187419,3354.0,3353.9,2.9816]
[1721053644077,0.6187419,3354.1,3354.0,2.98151]
[1721053644241,0.6187419,3354.3,3353.8,2.98166]
[1721053644448,7.4,3354.7,3354.5,2.98107]
[1721053644449,8.0187419,3354.7,3354.5,2.98107]
[1721053644679,0.6187419,3354.9,3354.7,2.98082]
[1721053644879,0.6187419,3354.9,3354.8,2.9808]
[1721053645372,0.6187419,3354.9,3354.7,2.98082]
[1721053645766,0.6187419,3354.9,3354.5,2.98105]
[1721053645767,0.6187419,3354.8,3354.2,2.9813]
[1721053645965,0.62067628,3354.6,3354.2,2.9813]
[1721053646150,0.62067628,3354.4,3354.2,2.9813]
[1721053646485,0.62067628,3354.4,3353.6,2.98179]
[1721053646486,2.447,3354.3,3353.6,2.98179]
[1721053646643,0.62067628,3353.9,3353.5,2.9819]
[1721053646840,0.62067628,3353.9,3353.6,2.98185]
[1721053647240,0.62067628,3353.8,3353.7,2.98178]
[1721053648585,0.92811285,3353.8,3353.6,2.98181]
[1721053648787,0.62067427,3353.7,3353.6,2.98181]
[1721053648986,0.62067427,3353.8,3353.6,2.98181]
[1721053649281,0.89930136,3353.8,3353.4,2.98199]
[1721053649586,0.62067427,3353.7,3353.4,2.98199]
[1721053649947,0.62067427,3353.7,3353.5,2.98195]
[1721053651971,0.62067427,3353.6,3352.9,2.98242]
[1721053652173,0.62067427,3353.6,3352.6,2.98269]
[1721053652174,0.62067427,3353.5,3352.6,2.98269]
[1721053652420,0.62067427,3353.2,3352.7,2.98259]
[1721053652622,0.62067427,3353.1,3352.7,2.98259]
[1721053652967,0.62067427,3353.1,3352.8,2.98257]
[1721053653879,0.62067427,3353.1,3352.9,2.98246]
[1721053654192,0.62067427,3353.2,3353.1,2.98231]
[1721053654521,1.2374838,3353.5,3353.2,2.98222]
[1721053654522,0.62067427,3353.5,3353.2,2.98222]
[1721053654675,0.62067427,3353.5,3353.4,2.98204]
[1721053655194,0.62067427,3353.6,3353.5,2.98195]
[1721053655372,0.92811285,3353.7,3353.6,2.98183]
[1721053655801,0.92811285,3353.8,3353.7,2.98178]
[1721053656099,0.62035757,3353.8,3353.7,2.98178]
[1721053658210,0.62035757,3353.9,3353.8,2.98169]
[1721053658411,0.62035757,3354.0,3353.9,2.9816]
[1721053659225,0.62035757,3354.1,3354.0,2.98151]
[1721053659828,8.33053636,3354.2,3354.0,2.98151]
[1721053659991,10.38159,3354.2,3354.0,2.98151]
[1721053660192,8.33053636,3354.2,3354.1,2.98142]
[1721053660383,7.4,3354.2,3354.1,2.98142]
[1721053661024,8.33053636,3354.2,3354.1,2.98142]
[1721053661233,0.93053636,3354.2,3354.1,2.98142]
[1721053662724,2.23102098,3354.2,3354.1,2.98142]
[1721053662953,2.23102098,3354.2,3353.9,2.98152]
[1721053663161,0.62070239,3354.0,3353.1,5.59626]
[1721053663339,0.62070239,3354.0,3353.7,2.98169]
[1721053663666,0.62070239,3354.0,3353.7,5.96338]
[1721053664028,0.62070239,3354.0,3353.7,2.98169]
[1721053665571,0.50234541,3354.2,3353.7,2.98169]
[1721053665768,0.62111878,3354.0,3353.7,2.98169]
[1721053666416,0.62111878,3354.0,3353.8,2.98167]
[1721053667416,0.62111878,3354.0,3353.9,2.9816]
[1721053667818,0.62111878,3354.0,3353.9,5.9632]
[1721053668916,0.93202982,3354.2,3354.1,2.98137]
[1721053669949,0.93202982,3354.3,3354.1,2.98137]
[1721053670147,0.62139994,3354.2,3354.1,2.98137]
[1721053670784,0.62139994,3354.3,3354.2,2.98133]
[1721053670927,8.02139994,3354.7,3354.3,2.98124]
[1721053671128,0.62133218,3354.8,3354.7,2.98089]
[1721053671327,0.62133218,3354.9,3354.8,2.9808]
[1721053671633,8.33202982,3355.1,3354.8,2.9808]
[1721053671634,0.62133218,3355.0,3354.8,2.9808]
[1721053671832,0.62133218,3355.0,3354.9,2.98071]
[1721053673135,8.02133218,3355.1,3354.9,2.98071]
[1721053673330,8.02133218,3355.1,3355.0,5.96124]
[1721053673545,0.62133218,3355.4,3355.2,2.98037]
[1721053673730,0.62133218,3355.4,3354.4,5.0666]
[1721053673731,0.62133218,3355.4,3355.3,5.9607]
[1721053673929,0.62133218,3355.6,3355.3,2.98035]
[1721053674333,8.02133218,3355.7,3355.5,2.98012]
[1721053674947,10.49217902,3355.7,3355.1,2.98052]
[1721053675142,0.62133218,3355.6,3354.9,2.98069]
[1721053675349,0.62133218,3355.5,3355.1,2.98051]
[1721053676635,0.62133218,3355.6,3355.1,2.98051]
[1721053677230,0.62133218,3355.6,3355.3,2.98031]
[1721053677453,7.4,3355.7,3355.3,2.98031]
[1721053677454,8.02133218,3355.7,3355.5,2.98018]
[1721053678289,8.02133218,3355.7,3355.6,2.98009]
[1721053678937,8.0201426,3355.7,3355.6,2.98009]
[1721053679136,0.6201426,3355.7,3355.6,2.98009]
[1721053680936,2.3324,3355.9,3355.6,2.98009]
[1721053681135,0.61974059,3355.7,3355.6,2.98009]
[1721053681677,0.61974059,3355.8,3355.6,2.98009]
[1721053682181,2.95214059,3355.9,3355.6,2.98009]
[1721053682552,0.61974059,3355.9,3355.7,2.97994]
[1721053682735,0.61974059,3356.0,3355.7,2.97994]
[1721053683652,0.61974059,3355.9,3355.7,2.97994]
[1721053684241,3.0,3356.1,3355.7,2.97994]
[1721053684442,1.89546529,3356.0,3355.7,2.97994]
[1721053685268,1.89546529,3356.0,3355.2,2.98039]
[1721053685439,4.87525529,3356.0,3355.2,2.98039]
[1721053686049,1.89546529,3356.0,3355.2,2.98039]
[1721053686256,1.27596,3356.0,3355.4,2.98025]
[1721053686562,1.27596,3356.0,3355.6,2.98007]
[1721053686563,1.62043332,3355.9,3355.6,2.98007]
[1721053687479,3.0,3356.1,3355.7,2.97999]
[1721053688394,6.59916529,3356.1,3355.4,2.98021]
[1721053688793,3.0,3356.1,3355.5,2.98017]
[1721053689897,3.0,3356.1,3355.6,2.98007]
[1721053690189,4.72878332,3356.1,3355.6,2.98007]
[1721053690970,3.0,3356.1,3355.8,2.97991]
[1721053691567,3.0,3356.1,3355.9,2.97975]
[1721053693005,3.0,3356.1,3355.5,2.9801]
[1721053693319,3.0,3356.1,3355.6,2.98006]
[1721053694320,3.0,3356.1,3355.7,2.98]
[1721053695035,3.0,3356.1,3355.9,2.97981]
[1721053695585,3.0,3356.1,3355.7,2.98]
[1721053695785,4.33791053,3356.1,3355.7,2.98]
[1721053696017,4.33791053,3356.1,3355.5,2.98015]
[1721053696202,2.97975,3356.0,3355.3,2.98033]
[1721053696412,4.33791053,3356.1,3355.4,2.98021]
[1721053696612,7.93711582,3356.1,3355.4,2.98021]
[1721053696797,2.16054738,3356.0,3355.4,2.98021]
[1721053697419,5.14028738,3356.0,3355.4,2.98021]
[1721053698317,5.75896183,3356.0,3355.4,2.98021]
[1721053700227,2.77922183,3356.0,3355.4,2.98021]
[1721053700896,2.77922183,3356.0,3355.5,2.98014]
[1721053701092,0.61867445,3356.0,3355.8,2.97983]
[1721053701307,8.01867445,3356.2,3355.8,2.97983]
[1721053701513,7.4,3356.2,3356.0,2.97973]
[1721053702130,7.4,3356.2,3355.8,2.97983]
[1721053702502,8.01867445,3356.2,3355.8,2.97983]
[1721053702828,8.01867445,3356.2,3355.9,2.97981]
[1721053703130,8.01867445,3356.2,3356.1,5.95928]
[1721053703131,7.4,3356.2,3356.1,5.95928]
[1721053709011,7.4,3356.2,3356.1,2.97964]
[1721053709209,7.4,3356.2,3355.9,2.9798]
[1721053711405,7.4,3356.2,3356.0,2.97972]
[1721053713234,8.01867445,3356.2,3356.0,2.97972]
[1721053713442,7.4,3356.2,3356.0,2.97972]
[1721053714747,7.4,3356.2,3356.1,5.95928]
[1721053718045,7.4,3356.2,3356.1,8.93892]
[1721053718978,7.4,3356.2,3356.1,8.89182]
[1721053730144,1.5538262,3357.1,3356.8,5.95804]
[1721053730145,0.61867445,3356.9,3356.8,5.95804]
[1721053731152,0.61867445,3357.0,3356.9,5.95786]
[1721053731774,0.92801168,3357.1,3357.0,2.97885]
[1721053731949,3.5549489,3357.3,3356.9,2.97893]
[1721053731950,3.56057583,3357.3,3357.1,2.97876]
[1721053732153,1.42513368,3357.2,3357.1,2.97876]
[1721053732376,0.12588842,3357.2,3357.1,2.97876]
[1721053732579,1.42513315,3357.2,3357.1,2.97876]
[1721053732978,2.23145227,3357.2,3357.1,2.97876]
[1721053733190,0.93220754,3357.2,3357.1,2.97876]
[1721053733694,2.23144054,3357.2,3357.1,2.97876]
[1721053733877,2.23143743,3357.2,3357.1,2.97876]
[1721053734077,0.93217961,3357.2,3357.1,2.97876]
[1721053734793,2.23142601,3357.2,3357.1,2.97876]
[1721053734965,0.12587514,3357.2,3357.1,2.97876]
[1721053735170,1.42513842,3357.2,3357.1,2.97876]
[1721053736105,2.66779954,3357.2,3357.1,2.97876]
[1721053738168,1.42513842,3357.2,3357.1,2.97876]
[1721053738369,0.12587514,3357.2,3357.1,2.97876]
[1721053738569,1.42512571,3357.2,3357.1,2.97876]
[1721053739467,2.23129508,3357.2,3357.1,2.97876]
[1721053739674,0.93204451,3357.2,3357.1,2.97876]
[1721053739872,2.23128017,3357.2,3357.1,2.97876]
[1721053740398,1.42510175,3357.2,3357.1,2.97876]
[1721053740573,2.2312912,3357.2,3357.1,2.97876]
[1721053740769,1.42509018,3357.2,3357.1,2.97876]
[1721053741011,0.54796201,3357.2,3357.1,2.97876]
[1721053741210,1.24273376,3357.2,3356.9,5.95779]
[1721053741513,2.23134741,3357.1,3357.0,2.97885]
[1721053741699,1.42513051,3357.1,3357.0,2.97885]
[1721053742827,2.23128788,3357.1,3357.0,2.97885]
[1721053743121,0.93203915,3357.1,3357.0,2.97885]
[1721053743515,2.23127838,3357.1,3357.0,2.97885]
[1721053744102,0.93203915,3357.1,3357.0,2.97885]
[1721053744302,1.42513674,3357.1,3357.0,2.97885]
[1721053745024,2.23154803,3357.1,3357.0,2.97885]
[1721053745224,1.42516042,3357.1,3357.0,2.97885]
[1721053746039,2.23166703,3357.1,3357.0,2.97885]
[1721053746331,1.4251677,3357.1,3357.0,2.97885]
[1721053747100,2.66790146,3357.1,3357.0,2.97885]
[1721053747437,2.66789089,3357.1,3357.0,2.97885]
[1721053747829,1.42515713,3357.1,3357.0,2.97885]
[1721053749135,2.4396,3357.6,3357.1,2.97875]
[1721053749347,1.55600019,3357.2,3357.1,2.97875]
[1721053749665,2.8552614,3357.2,3357.1,2.97875]
[1721053749820,2.98133069,3357.2,3357.1,2.97875]
[1721053750022,2.98133069,3357.2,3357.1,5.95751]
[1721053750023,1.42531093,3357.2,3357.1,5.95751]
[1721053750344,2.67015298,3357.2,3357.1,5.95751]
[1721053750657,1.37091134,3357.2,3357.1,5.95751]
[1721053750857,2.67010597,3357.2,3357.1,5.95751]
[1721053753951,1.37091134,3357.2,3357.1,5.95751]
[1721053754178,2.54512004,3357.2,3357.1,5.95751]
[1721053754333,2.67118933,3357.2,3357.1,5.95751]
[1721053754531,2.6711895,3357.2,3357.1,5.95751]
[1721053756646,1.55742592,3357.3,3357.1,5.95751]
[1721053756647,0.6229603,3357.3,3357.2,2.97867]
[1721053756841,0.9343979,3357.5,3357.4,2.97849]
[1721053757040,1.24594024,3357.6,3357.5,2.9784]
[1721053757239,2.2331393,3357.6,3357.5,5.9568]
[1721053758024,2.2331393,3357.6,3357.5,2.9784]
[1721053758424,4.96636565,3357.6,3357.4,2.97842]
[1721053758666,1.42492541,3357.5,3357.4,2.97842]
[1721053759036,2.66958691,3357.5,3357.3,2.97855]
[1721053759341,2.66958691,3357.5,3357.0,2.97884]
[1721053759342,2.85630343,3357.4,3357.0,2.97884]
[1721053759558,0.93307327,3357.1,3357.0,2.97884]
[1721053760130,1.2440977,3357.3,3357.0,4.06684]
[1721053760329,2.23192189,3357.2,3357.0,2.97884]
[1721053760560,0.93276473,3357.2,3357.1,5.95752]
[1721053760782,0.93276473,3357.3,3357.2,2.97867]
[1721053761467,0.93276473,3357.3,3357.2,5.95734]
[1721053761839,0.93270479,3357.4,3357.2,2.97867]
[1721053762242,0.62192685,3357.3,3357.1,2.97871]
[1721053762436,0.62192685,3357.3,3357.2,5.95734]
[1721053762633,1.29909573,3357.3,3357.1,2.97871]
[1721053762862,1.29909573,3357.3,3357.1,5.95747]
[1721053762863,0.62185695,3357.2,3357.1,5.95747]
[1721053763189,0.93278553,3357.3,3356.8,2.4103]
[1721053763190,0.93278553,3357.3,3357.2,5.95734]
[1721053763396,4.61400162,3357.3,3357.2,2.97867]
[1721053763621,5.63679407,3357.3,3357.2,2.97867]
[1721053763762,5.94801341,3357.3,3357.0,5.95761]
[1721053763952,2.66920949,3357.2,3357.0,2.97877]
[1721053764212,1.42512577,3357.1,3357.0,2.97877]
[1721053764703,2.66920949,3357.1,3357.0,2.97877]
[1721053765372,2.66920949,3357.1,3355.9,4.9341]
[1721053765699,2.66920949,3357.1,3356.6,2.97913]
[1721053765700,0.93312493,3356.8,3356.6,2.97913]
[1721053765912,0.62199807,3356.7,3356.4,2.97937]
[1721053766061,0.93312493,3356.8,3356.4,2.97937]
[1721053766062,2.23254663,3356.6,3356.5,2.97925]
[1721053766257,2.23254663,3356.6,3356.4,2.97937]
[1721053766460,2.23258929,3356.5,3356.4,2.97937]
[1721053766671,2.66972233,3356.5,3356.4,2.97937]
[1721053767092,1.42563861,3356.5,3356.4,2.97937]
[1721053767403,1.42564297,3356.5,3356.4,2.97937]
[1721053767605,3.3254289,3356.5,3356.4,2.97937]
[1721053767899,2.66931527,3356.5,3356.4,2.97937]
[1721053768090,1.42564297,3356.5,3356.4,2.97937]
[1721053768287,2.66939965,3356.5,3356.4,2.97937]
[1721053768871,1.42564297,3356.5,3356.4,2.97937]
[1721053769303,2.66899705,3356.5,3356.4,2.97937]
[1721053769511,1.42564297,3356.5,3356.4,5.95875]
[1721053769686,1.86551446,3357.0,3356.4,5.95875]
[1721053769687,0.93248877,3356.8,3356.4,2.97937]
[1721053770006,0.93248877,3356.8,3356.7,5.95822]
[1721053770191,0.93276853,3356.9,3356.8,2.97902]
[1721053770368,2.23204286,3356.9,3356.8,5.95804]
[1721053771901,0.93276853,3357.0,3356.9,2.97893]
[1721053772076,1.42520011,3357.0,3356.8,2.97902]
[1721053772276,2.23210094,3356.9,3356.8,5.95804]
[1721053772904,2.23210094,3356.9,3356.8,2.97902]
[1721053772905,1.42525381,3356.9,3356.8,2.97902]
[1721053773108,1.42525381,3356.9,3356.6,2.9792]
[1721053773295,1.24405107,3356.7,3356.4,2.97931]
[1721053773484,2.23234734,3356.6,3356.4,2.97931]
[1721053773691,0.93307888,3356.5,3356.4,2.97931]
[1721053773891,0.93307888,3356.6,3356.5,2.97929]
[1721053774084,0.93307888,3356.6,3356.5,5.95858]
[1721053774410,2.23248392,3356.6,3356.5,5.95858]
[1721053774909,2.23248392,3356.6,3356.5,2.97929]
[1721053775080,2.66958299,3356.6,3356.5,2.97929]
[1721053775543,2.23236283,3356.6,3356.5,2.97929]
[1721053775696,1.42550695,3356.6,3356.5,2.97929]
[1721053776096,1.4255214,3356.6,3356.5,2.97929]
[1721053776511,2.23223255,3356.6,3356.5,2.97929]
[1721053776830,1.42550362,3356.6,3356.5,2.97929]
[1721053776998,2.66926501,3356.6,3356.5,2.97929]
[1721053777194,2.23222664,3356.6,3356.5,2.97929]
[1721053778009,2.23222664,3356.6,3356.4,2.9793]
[1721053778236,2.23223881,3356.5,3356.4,2.9793]
[1721053778413,0.93281513,3356.5,3356.4,2.9793]
[1721053778795,0.93281513,3356.6,3356.4,2.9793]
[1721053779002,0.93281513,3356.5,3356.4,5.95868]
[1721053779235,0.62182621,3356.5,3356.4,5.95868]
[1721053780717,0.93281513,3356.7,3356.6,2.9792]
[1721053781219,2.23216294,3356.7,3356.6,2.9792]
[1721053781428,2.23216294,3356.7,3356.6,5.9584]
[1721053781601,0.93281513,3356.7,3356.6,5.9584]
[1721053782104,0.93281513,3356.9,3356.8,5.95804]
[1721053782431,2.23209414,3356.9,3356.8,5.95804]
[1721053784929,1.42532591,3356.9,3356.8,5.95804]
[1721053785425,1.42532591,3356.9,3356.8,2.97902]
[1721053785602,2.66909548,3356.9,3356.8,2.97902]
[1721053786321,1.42533409,3356.9,3356.8,2.97902]
[1721053787397,2.66909548,3356.9,3356.8,2.97902]
[1721053788718,1.36980829,3356.9,3356.8,2.97902]
[1721053788992,2.6690937,3356.9,3356.8,2.97902]
[1721053789202,1.42533185,3356.9,3356.8,2.97902]
[1721053789402,2.66909324,3356.9,3356.8,2.97902]
[1721053789600,2.66909324,3356.9,3356.8,5.95804]
[1721053789955,2.23251181,3356.9,3356.8,5.95804]
[1721053790113,0.93322686,3357.0,3356.9,8.24386]
[1721053790316,0.6222114,3357.1,3357.0,5.9577]
[1721053790520,7.4,3357.2,3357.1,8.93628]
[1721053790721,8.0222114,3357.2,3357.1,8.93628]
[1721053791324,7.4,3357.2,3357.1,8.93628]
[1721053794738,7.4,3357.2,3357.1,5.95752]
[1721053795115,1.2435838,3357.6,3357.5,2.9784]
[1721053795316,2.66839286,3357.6,3357.5,2.9784]
[1721053796027,1.42480906,3357.6,3357.5,2.9784]
[1721053796849,2.23169459,3357.6,3357.5,5.9568]
[1721053797027,8.6435838,3357.7,3357.5,5.9568]
[1721053797028,7.4,3357.7,3357.6,5.95662]
[1721053801957,7.4,3357.7,3357.6,8.93493]
[1721053804612,7.4,3357.7,3357.6,17.38424]
[1721053804811,7.4,3357.7,3357.6,17.93424]
[1721053805042,0.6218274,3358.6,3358.5,5.95502]
[1721053805924,2.4748,3358.7,3358.5,5.95502]
[1721053805925,3.0966274,3358.7,3358.6,2.97743]
[1721053807255,2.4748,3358.7,3358.6,5.95486]
[1721053808649,0.6218274,3358.8,3358.7,5.95468]
[1721053808959,0.6218274,3358.9,3358.8,2.97725]
[1721053809258,2.3765,3358.8,3357.7,2.97822]
[1721053809429,0.62017907,3358.4,3358.0,2.9779]
[1721053809624,2.3765,3358.2,3357.6,2.97831]
[1721053809821,2.3765,3358.2,3358.0,2.97793]
[1721053809822,2.99662322,3358.2,3358.0,2.97793]
[1721053810263,2.3765,3358.2,3358.0,2.97793]
[1721053810577,2.3765,3358.2,3357.8,2.97813]
[1721053810725,2.3765,3358.2,3357.7,2.9782]
[1721053810918,0.39268081,3358.1,3357.8,2.97812]
[1721053811124,2.3765,3358.2,3357.8,2.97812]
[1721053812054,2.3765,3358.2,3357.9,2.97804]
[1721053812221,2.3765,3358.2,3358.0,2.97796]
[1721053813235,0.62012322,3358.3,3358.1,2.97787]
[1721053813436,3.0834919,3358.5,3358.4,2.9776]
[1721053813642,2.4635,3358.5,3358.4,2.9776]
[1721053814387,2.4635,3358.5,3358.2,2.97778]
[1721053814664,2.86484798,3358.5,3358.3,2.97769]
[1721053815181,2.86484798,3358.5,3358.4,2.9776]
[1721053815485,0.6199919,3358.6,3358.5,2.97751]
[1721053815668,2.3337,3358.8,3358.7,2.97734]
[1721053818724,2.3337,3358.8,3357.9,2.978]
[1721053818924,2.3337,3358.8,3358.0,2.97793]